bitfinex/quotes_SOLUSD_20251103
["timestamp","ask_amount","ask_price","bid_price","bid_amount"]
[1762154487953,7.90481224,176.14,176.09,8.60481224]
[1762154488159,8.56481224,176.14,176.09,8.60481224]
[1762154488856,8.56481224,176.14,176.1,6.3785917]
[1762154489032,7.90481224,176.14,176.1,6.3785917]
[1762154489239,11.67603993,176.16,176.11,8.60481224]
[1762154489637,17.69363993,176.17,176.12,0.7]
[1762154489837,3.77271677,176.16,176.12,0.7]
[1762154490137,4.74799975,176.2,176.14,7.90481224]
[1762154490138,8.56481224,176.2,176.14,7.90481224]
[1762154490335,21.46746519,176.21,176.16,7.90481224]
[1762154490534,3.77382526,176.2,176.16,7.90481224]
[1762154490734,3.77382526,176.2,176.16,8.60481224]
[1762154491057,3.77382526,176.2,176.16,14.28128763]
[1762154491970,8.56481224,176.19,176.13,8.60481224]
[1762154492172,7.90481224,176.18,176.13,6.3776136]
[1762154492353,11.6786375,176.19,176.14,8.60481224]
[1762154492673,3.77382526,176.18,176.14,8.60481224]
[1762154492867,3.77382526,176.19,176.15,8.60481224]
[1762154493070,3.77382526,176.19,176.16,13.58146982]
[1762154493269,3.77382526,176.21,176.16,6.37665758]
[1762154493444,3.77382526,176.2,176.19,7.90481224]
[1762154493644,3.77382526,176.22,176.19,7.90481224]
[1762154493867,3.77382526,176.24,176.19,8.60481224]
[1762154494064,3.77382526,176.23,176.19,8.60481224]
[1762154494258,3.77382526,176.22,176.19,8.60481224]
[1762154494457,3.77382526,176.21,176.16,19.86830154]
[1762154494657,11.6786375,176.2,176.16,5.67665758]
[1762154494856,3.77382526,176.19,176.16,5.67665758]
[1762154495063,3.77382526,176.2,176.16,6.37665758]
[1762154495260,3.77382526,176.19,176.16,6.37665758]
[1762154495476,11.6786375,176.2,176.16,5.67665758]
[1762154495784,3.77382526,176.19,176.16,5.67665758]
[1762154495952,3.77382526,176.18,176.16,6.37665758]
[1762154496148,3.77382526,176.19,176.16,5.67665758]
[1762154496349,3.77382526,176.18,176.16,6.33665758]
[1762154496650,11.6786375,176.21,176.16,14.24146982]
[1762154496850,3.77382526,176.2,176.16,13.58146982]
[1762154497075,3.77382526,176.19,176.16,14.24146982]
[1762154497372,3.77382526,176.18,176.16,14.24146982]
[1762154497565,3.77382526,176.2,176.16,14.24146982]
[1762154497770,3.77382526,176.19,176.16,13.58146982]
[1762154498066,3.77382526,176.2,176.17,0.66]
[1762154498276,3.77382526,176.19,176.17,0.66]
[1762154498472,3.77382526,176.18,176.16,5.67665758]
[1762154498660,7.90481224,176.19,176.16,5.67665758]
[1762154498846,3.79188067,176.18,176.16,5.67665758]
[1762154499046,3.79188067,176.17,176.16,5.67665758]
[1762154499345,12.39669291,176.18,176.12,22.09910592]
[1762154499562,7.90481224,176.13,176.08,0.66]
[1762154499745,3.79188067,176.12,176.08,20.53732848]
[1762154500061,7.90481224,176.13,176.08,20.53732848]
[1762154500269,3.79148313,176.12,176.09,0.66]
[1762154500458,3.79148313,176.11,176.09,0.66]
[1762154500661,3.79148313,176.12,176.09,0.66]
[1762154500865,3.79148313,176.11,176.08,19.87732848]
[1762154501054,3.79148313,176.12,176.08,28.44214072]
[1762154501248,3.79148313,176.11,176.08,27.78214072]
[1762154501575,7.90481224,176.13,176.09,0.66]
[1762154501759,3.79419924,176.12,176.09,0.66]
[1762154502066,3.79419924,176.11,176.1,5.6785917]
[1762154502444,3.79419924,176.11,176.1,6.3385917]
[1762154502848,3.79419924,176.11,176.1,0.66]
[1762154503263,3.79419924,176.11,176.1,8.56481224]
[1762154503671,4.74799975,176.16,176.1,8.56481224]
[1762154503974,3.80193995,176.15,176.11,5.6782212]
[1762154504272,3.80193995,176.14,176.11,5.6782212]
[1762154504473,3.80193995,176.13,176.11,5.6782212]
[1762154504667,3.80193995,176.12,176.11,6.3382212]
[1762154505795,3.80193995,176.12,176.09,14.24351495]
[1762154505951,3.80193995,176.11,176.09,6.33870271]
[1762154506150,3.80193995,176.1,176.09,6.33870271]
[1762154507645,3.80193995,176.1,176.09,14.24351495]
[1762154507853,3.80193995,176.1,176.07,5.87927387]
[1762154508078,3.80193995,176.09,176.08,0.66]
[1762154508249,3.80193995,176.09,176.07,13.78408611]
[1762154508250,3.80193995,176.09,176.07,6.53927387]
[1762154508446,8.60481224,176.12,176.08,0.66]
[1762154508678,3.80909632,176.11,176.08,0.66]
[1762154508973,3.80909632,176.1,176.07,5.87927387]
[1762154509280,4.74799975,176.16,176.1,20.592]
[1762154509466,4.74799975,176.21,176.15,7.90481224]
[1762154509659,0.7,176.2,176.15,13.58174014]
[1762154509874,8.60481224,176.2,176.15,5.6769279]
[1762154510052,0.7,176.19,176.15,5.6769279]
[1762154510253,0.7,176.19,176.15,14.24174014]
[1762154510566,4.74799975,176.22,176.17,7.90481224]
[1762154510774,4.74799975,176.22,176.18,7.90481224]
[1762154511272,4.74799975,176.22,176.18,8.56481224]
[1762154511476,9.78882769,176.22,176.19,5.67569101]
[1762154511676,4.74799975,176.23,176.19,13.58050325]
[1762154512000,5.44799975,176.23,176.18,8.56481224]
[1762154512164,7.90481224,176.21,176.15,7.90481224]
[1762154512489,7.90481224,176.21,176.15,13.58179208]
[1762154512651,8.60481224,176.21,176.15,7.90481224]
[1762154513457,8.60481224,176.21,176.15,8.56481224]
[1762154513680,8.60481224,176.21,176.16,5.67665758]
[1762154514068,0.7,176.21,176.16,14.24146982]
[1762154514265,4.74799975,176.23,176.18,7.90481224]
[1762154514569,0.7,176.23,176.18,8.56481224]
[1762154514972,0.7,176.23,176.19,7.90481224]
[1762154515783,0.7,176.23,176.19,5.67554986]
[1762154516363,0.7,176.23,176.19,13.5803621]
[1762154516775,0.7,176.23,176.19,14.2403621]
[1762154516976,0.7,176.23,176.17,0.66]
[1762154517171,0.7,176.23,176.19,7.90481224]
[1762154518159,0.7,176.23,176.19,13.58022953]
[1762154520091,0.7,176.23,176.18,13.5808254]
[1762154520292,7.90481224,176.19,176.12,0.66]
[1762154520585,7.90481224,176.19,176.13,8.56481224]
[1762154521288,3.8051395,176.18,176.13,8.56481224]
[1762154521501,3.8051395,176.17,176.13,8.56481224]
[1762154521663,3.8051395,176.16,176.14,5.67730214]
[1762154521863,3.8051395,176.18,176.14,13.58211438]
[1762154522080,8.60481224,176.2,176.14,7.90481224]
[1762154522081,3.8051395,176.17,176.14,7.90481224]
[1762154522291,3.8051395,176.16,176.14,7.90481224]
[1762154522489,6.38191902,176.19,176.14,6.34191902]
[1762154522689,3.80473068,176.18,176.14,6.34191902]
[1762154522877,3.80473068,176.17,176.14,6.34191902]
[1762154523061,3.80473068,176.16,176.15,6.34191902]
[1762154523473,3.80473068,176.19,176.15,6.34191902]
[1762154523676,3.80473068,176.18,176.16,5.67665758]
[1762154523886,3.80473068,176.17,176.16,12.0185766]
[1762154524089,3.80473068,176.17,176.16,11.3585766]
[1762154524390,3.80473068,176.2,176.16,25.55022056]
[1762154524575,3.80856211,176.22,176.19,26.27391902]
[1762154524900,4.74799975,176.28,176.21,11.36383804]
[1762154525194,0.7,176.31,176.2,0.56753688]
[1762154525195,4.74799975,176.3,176.26,5.68191902]
[1762154525376,0.7,176.29,176.26,5.68191902]
[1762154525573,0.7,176.29,176.25,5.67375886]
[1762154525765,4.74799975,176.3,176.26,5.68191902]
[1762154526009,5.44799975,176.3,176.27,5.68191902]
[1762154526303,0.7,176.3,176.26,5.68191902]
[1762154526468,16.76146299,176.32,176.26,6.38191902]
[1762154526790,16.76146299,176.32,176.27,5.68191902]
[1762154526982,5.40799975,176.32,176.27,5.68191902]
[1762154527188,0.66,176.32,176.28,5.68191902]
[1762154527589,4.74799975,176.36,176.31,5.67182803]
[1762154527774,10.44882769,176.36,176.31,11.35374705]
[1762154528303,10.44882769,176.36,176.31,12.05374705]
[1762154528479,9.78882769,176.36,176.31,12.05374705]
[1762154528685,0.66,176.35,176.31,12.05374705]
[1762154529083,0.66,176.35,176.31,11.35374705]
[1762154529279,6.34191902,176.35,176.29,5.68191902]
[1762154529895,6.34191902,176.35,176.3,5.67214974]
[1762154530204,0.66,176.34,176.27,6.38191902]
[1762154530400,5.68191902,176.32,176.27,0.7]
[1762154530697,5.68191902,176.32,176.27,6.38191902]
[1762154531198,0.66,176.34,176.28,6.38191902]
[1762154531199,16.13074671,176.34,176.28,6.38191902]
[1762154531372,10.44882769,176.34,176.28,6.38191902]
[1762154531577,16.13074671,176.34,176.28,6.38191902]
[1762154531791,21.14167764,176.34,176.28,11.35457158]
[1762154531994,6.34191902,176.33,176.28,5.67265256]
[1762154532522,0.66,176.32,176.28,5.67265256]
[1762154533006,6.34191902,176.32,176.27,5.6731151]
[1762154533198,5.68191902,176.31,176.26,21.292]
[1762154533398,15.47074671,176.33,176.27,6.38191902]
[1762154533604,9.78882769,176.33,176.28,5.68191902]
[1762154533790,9.78882769,176.33,176.28,6.38191902]
[1762154534104,5.68191902,176.35,176.29,6.38191902]
[1762154534305,6.34191902,176.38,176.32,5.68191902]
[1762154535498,6.34191902,176.38,176.33,11.35310373]
[1762154535704,6.34191902,176.38,176.33,5.68191902]
[1762154535890,0.66,176.37,176.33,5.68191902]
[1762154536096,5.68191902,176.36,176.29,21.292]
[1762154536404,5.68191902,176.31,176.25,26.97391902]
[1762154536607,5.68191902,176.31,176.26,0.7]
[1762154537392,5.68191902,176.31,176.26,6.37342708]
[1762154537597,6.34191902,176.33,176.27,5.68191902]
[1762154537805,10.12751925,176.33,176.27,6.38191902]
[1762154538397,5.68191902,176.32,176.27,0.7]
[1762154538610,5.68191902,176.31,176.26,11.3553461]
[1762154538789,5.68191902,176.31,176.26,12.0553461]
[1762154538987,10.12751925,176.32,176.27,0.7]
[1762154539184,23.9648324,176.36,176.27,0.7]
[1762154539185,9.78882769,176.36,176.31,5.68191902]
[1762154539387,3.78373527,176.38,176.33,5.68191902]
[1762154539579,6.34191902,176.38,176.32,0.7]
[1762154539786,6.34191902,176.38,176.32,6.38191902]
[1762154540212,0.66,176.38,176.33,5.68191902]
[1762154540594,0.66,176.38,176.33,6.38191902]
[1762154541412,3.78373527,176.39,176.36,5.68191902]
[1762154541608,9.46565429,176.41,176.35,11.35246055]
[1762154541911,0.1,176.45,176.35,11.35246055]
[1762154541912,0.76,176.45,176.4,5.68191902]
[1762154542585,0.1,176.45,176.41,5.68191902]
[1762154542785,0.1,176.45,176.41,6.38191902]
[1762154542987,0.76,176.45,176.4,5.68191902]
[1762154543398,21.1396069,176.41,176.32,0.7]
[1762154543597,5.68191902,176.37,176.32,6.37128542]
[1762154543782,5.68191902,176.39,176.32,26.23197032]
[1762154543980,5.68191902,176.39,176.33,0.7]
[1762154544807,0.66,176.4,176.33,0.7]
[1762154544992,5.68191902,176.39,176.33,0.7]
[1762154546493,0.66,176.4,176.33,6.37117287]
[1762154546812,5.68191902,176.39,176.33,6.37117287]
[1762154547022,5.68191902,176.39,176.33,5.67117287]
[1762154547023,5.68191902,176.37,176.33,5.67117287]
[1762154547323,6.38191902,176.36,176.33,5.67117287]
[1762154547562,5.68191902,176.36,176.33,5.67117287]
[1762154548091,5.68191902,176.36,176.32,5.67150635]
[1762154548292,5.68191902,176.36,176.32,6.34150635]
[1762154548495,5.68191902,176.37,176.32,6.34150635]
[1762154549512,6.38191902,176.37,176.32,6.34150635]
[1762154549700,6.38191902,176.37,176.32,5.67150635]
[1762154549908,5.68191902,176.38,176.33,0.67]
[1762154550097,5.68191902,176.37,176.33,0.67]
[1762154550394,5.68191902,176.37,176.32,19.85027223]
[1762154550600,6.38191902,176.37,176.32,20.52027223]
[1762154550911,6.38191902,176.37,176.32,6.34150635]
[1762154551512,6.38191902,176.37,176.33,0.67]
[1762154551728,0.7,176.37,176.33,0.67]
[1762154551922,0.7,176.37,176.33,5.67092726]
[1762154552226,6.38191902,176.37,176.33,5.67092726]
[1762154552933,47.9,176.42,176.34,0.67]
[1762154553231,5.68191902,176.43,176.36,5.68191902]
[1762154553423,0.7,176.44,176.37,5.68191902]
[1762154553617,0.7,176.44,176.38,5.68191902]
[1762154553811,3.87449468,176.45,176.4,5.66893424]
[1762154554009,0.8,176.45,176.4,6.33893424]
[1762154554420,0.7,176.44,176.4,5.66893424]
[1762154554728,0.7,176.44,176.4,6.33893424]
[1762154554938,5.78191902,176.45,176.4,6.33893424]
[1762154554939,0.1,176.45,176.43,5.68191902]
[1762154555104,0.1,176.45,176.44,5.68191902]
[1762154555611,0.1,176.45,176.44,0.67]
[1762154555814,0.1,176.45,176.44,6.35191902]
[1762154556014,0.1,176.45,176.44,12.01956807]
[1762154558932,0.1,176.45,176.44,32.61156807]
[1762154563531,0.1,176.45,176.44,26.92964905]
[1762154563737,0.1,176.45,176.44,32.61156807]
[1762154564341,0.1,176.45,176.44,42.40039576]
[1762154564528,1e-08,176.45,176.44,21.80839576]
[1762154564835,1e-08,176.45,176.44,34.88281129]
[1762154565045,1e-08,176.45,176.44,14.29081129]
[1762154566525,1e-08,176.45,176.44,40.56473031]
[1762154566725,1e-08,176.45,176.44,34.88281129]
[1762154566951,1e-08,176.45,176.44,14.29081129]
[1762154567135,1e-08,176.45,176.44,31.94156807]
[1762154567752,1e-08,176.45,176.44,26.91964905]
[1762154568250,1e-08,176.45,176.44,32.60156807]
[1762154569743,1e-08,176.45,176.44,31.94156807]
[1762154569928,1e-08,176.45,176.43,11.34985317]
[1762154570242,1e-08,176.45,176.44,5.68191902]
[1762154571423,1e-08,176.45,176.44,12.59060294]
[1762154571850,1e-08,176.45,176.44,18.25825199]
[1762154572350,1e-08,176.45,176.44,28.04707968]
[1762154574048,0.1,176.49,176.47,20.592]
[1762154574237,0.1,176.49,176.48,5.68191902]
[1762154574557,0.1,176.49,176.48,6.34191902]
[1762154574851,0.1,176.49,176.47,20.592]
[1762154575151,0.1,176.49,176.48,5.68191902]
[1762154575931,0.1,176.49,176.48,11.34828348]
[1762154576141,0.1,176.49,176.48,31.94028348]
[1762154579554,0.1,176.49,176.48,26.27391902]
[1762154579730,0.79,176.49,176.43,2.27137219]
[1762154579946,0.79,176.49,176.44,5.68191902]
[1762154580244,4.57479375,176.49,176.44,5.68191902]
[1762154580444,10.25671277,176.49,176.44,5.68191902]
[1762154580644,0.69,176.48,176.44,5.68191902]
[1762154581039,4.47479375,176.48,176.43,5.68191902]
[1762154581243,0.69,176.48,176.43,5.68191902]
[1762154581450,0.69,176.47,176.45,5.68191902]
[1762154581663,3.88479375,176.49,176.46,6.24861968]
[1762154581850,0.1,176.49,176.48,5.68191902]
[1762154582163,0.1,176.49,176.48,11.34828348]
[1762154584352,0.1,176.49,176.48,13.54773201]
[1762154584858,0.79,176.49,176.45,7.88136755]
[1762154585145,4.57479375,176.49,176.45,7.88136755]
[1762154585578,0.69,176.48,176.46,7.88136755]
[1762154585751,0.69,176.48,176.46,5.66672653]
[1762154585955,0.1,176.49,176.48,20.592]
[1762154586278,0.1,176.49,176.48,28.47336755]
[1762154586573,0.1,176.49,176.48,29.19336755]
[1762154587748,0.1,176.49,176.48,34.85973201]
[1762154590349,0.1,176.49,176.48,26.25836446]
[1762154590550,0.1,176.49,176.48,34.13973201]
[1762154591066,0.1,176.49,176.48,34.85973201]
[1762154591568,14.33761138,176.49,176.39,8.43883852]
[1762154591870,7.88136755,176.47,176.42,7.88136755]
[1762154592072,12.3561613,176.48,176.43,5.66797029]
[1762154592274,0.69,176.47,176.43,26.25997029]
[1762154592773,0.69,176.47,176.43,13.54933784]
[1762154593154,0.69,176.47,176.44,7.88136755]
[1762154593449,0.69,176.47,176.43,13.54933784]
[1762154594263,4.47479375,176.47,176.43,13.54933784]
[1762154594575,0.69,176.47,176.43,13.54933784]
[1762154594754,0.69,176.46,176.43,13.54933784]
[1762154595872,0.69,176.46,176.44,7.88136755]
[1762154596074,0.69,176.46,176.43,7.88136755]
[1762154596274,0.69,176.46,176.44,7.88136755]
[1762154596474,0.1,176.49,176.45,7.88136755]
[1762154596671,0.1,176.49,176.45,21.312]
[1762154596865,0.1,176.49,176.48,7.88136755]
[1762154597072,3.90262433,176.49,176.48,7.88136755]
[1762154597579,3.90262433,176.49,176.45,21.312]
[1762154597879,0.79,176.49,176.47,7.88136755]
[1762154598052,0.1,176.49,176.48,7.88136755]
[1762154598255,3.90795525,176.49,176.48,7.88136755]
[1762154598466,0.1,176.49,176.48,7.88136755]
[1762154599877,4.60323542,176.49,176.48,20.592]
[1762154600475,3.91323542,176.49,176.48,28.47336755]
[1762154600665,4.60323542,176.49,176.48,28.47336755]
[1762154601364,4.60323542,176.49,176.48,20.592]
[1762154601678,4.60323542,176.49,176.48,34.13973201]
[1762154601978,3.91323542,176.49,176.48,34.13973201]
[1762154602753,3.91323542,176.49,176.48,13.54773201]
[1762154602955,3.91323542,176.49,176.48,34.13973201]
[1762154604085,0.1,176.49,176.48,34.13973201]
[1762154604300,0.1,176.51,176.48,35.42636845]
[1762154604456,0.1,176.53,176.5,28.47336755]
[1762154604662,1e-08,176.53,176.52,15.7627351]
[1762154605169,1e-08,176.54,176.53,0.72]
[1762154605372,1e-08,176.54,176.53,9.1678435]
[1762154605581,1e-08,176.54,176.53,14.83260303]
[1762154605871,1e-08,176.54,176.53,24.62143072]
[1762154606866,1e-08,176.54,176.53,5.66475953]
[1762154607065,1e-08,176.54,176.53,34.13812708]
[1762154607600,1e-08,176.54,176.53,34.81812708]
[1762154608002,1e-08,176.54,176.53,35.38460303]
[1762154608286,1e-08,176.54,176.53,24.58143072]
[1762154608582,1e-08,176.56,176.55,30.38082769]
[1762154608770,1e-08,176.56,176.55,38.82860702]
[1762154608968,1e-08,176.56,176.55,39.50860702]
[1762154609661,1e-08,176.56,176.55,35.38389714]
[1762154609865,1e-08,176.56,176.55,34.13748536]
[1762154610176,1e-08,176.56,176.55,26.25611781]
[1762154610566,1e-08,176.56,176.55,34.13748536]
[1762154611273,0.72000001,176.56,176.55,34.13748536]
[1762154611584,1e-08,176.56,176.55,34.13748536]
[1762154612385,0.72000001,176.56,176.53,27.70774005]
[1762154612704,0.72000001,176.56,176.44,28.9048247]
[1762154612705,8.60136756,176.56,176.44,28.9048247]
[1762154612863,7.88136755,176.53,176.47,7.88136755]
[1762154613189,0.72000001,176.56,176.45,5.66732785]
[1762154613190,7.88136755,176.52,176.46,7.88136755]
[1762154613390,7.88136755,176.52,176.46,42.64032599]
[1762154613577,0.72,176.51,176.46,20.592]
[1762154613763,0.72,176.51,176.47,5.66668555]
[1762154613969,0.72,176.51,176.46,28.47336755]
[1762154614189,8.60136755,176.51,176.45,13.54849349]
[1762154614572,0.72,176.5,176.45,13.54849349]
[1762154616096,0.72,176.5,176.46,7.88136755]
[1762154616869,3.8041563,176.52,176.48,7.88136755]
[1762154617195,4.4741563,176.53,176.49,7.88136755]
[1762154617401,0.67,176.52,176.5,7.88136755]
[1762154617695,0.67,176.52,176.49,7.88136755]
[1762154617892,0.67,176.52,176.5,5.66572237]
[1762154618081,0.67,176.52,176.5,13.54708992]
[1762154618280,13.54548134,176.56,176.5,13.54708992]
[1762154618281,4.4768792,176.55,176.51,7.88136755]
[1762154618780,3.80687921,176.56,176.54,7.88136755]
[1762154619080,1e-08,176.56,176.55,0.56641178]
[1762154619280,1e-08,176.56,176.55,7.88136755]
[1762154619985,0.67000001,176.56,176.54,13.5457958]
[1762154620190,1e-08,176.56,176.55,7.88136755]
[1762154621195,1e-08,176.56,176.54,13.5457958]
[1762154621413,0.67000001,176.56,176.52,5.66479522]
[1762154622198,0.67000001,176.56,176.53,7.88136755]
[1762154622569,0.67000001,176.56,176.52,27.70886388]
[1762154622783,0.67000001,176.56,176.53,7.88136755]
[1762154623590,0.67000001,176.56,176.54,5.66443865]
[1762154624683,0.67000001,176.56,176.53,5.66475953]
[1762154624878,0.67000001,176.56,176.51,26.25737879]
[1762154625075,3.80494816,176.55,176.52,7.88136755]
[1762154625378,0.67000001,176.56,176.51,7.88136755]
[1762154625582,0.67000001,176.56,176.53,7.88136755]
[1762154626885,0.67000001,176.56,176.54,5.66443865]
[1762154627708,1e-08,176.56,176.54,13.5458062]
[1762154628377,1e-08,176.56,176.54,5.66443865]
[1762154628594,0.67000001,176.56,176.54,5.66443865]
[1762154628893,0.67000001,176.56,176.53,5.66475953]
[1762154629886,1e-08,176.56,176.54,7.88136755]
[1762154630971,1e-08,176.56,176.53,27.7080259]
[1762154631173,0.67000001,176.56,176.53,19.82665835]
[1762154631483,0.67000001,176.56,176.53,27.7080259]
[1762154631484,1e-08,176.56,176.53,27.7080259]
[1762154631685,1e-08,176.56,176.54,7.88136755]
[1762154631887,1e-08,176.56,176.55,5.66411781]
[1762154632205,1e-08,176.56,176.55,6.36411781]
[1762154632383,1e-08,176.56,176.55,35.40389714]
[1762154633313,1e-08,176.56,176.55,14.81189714]
[1762154633691,1e-08,176.56,176.55,45.19272483]
[1762154634001,1e-08,176.56,176.55,24.60072483]
[1762154634224,1e-08,176.56,176.55,45.19272483]
[1762154634384,1e-08,176.56,176.55,24.60072483]
[1762154635804,1e-08,176.56,176.55,45.19272483]
[1762154635980,1e-08,176.56,176.55,24.60072483]
[1762154636183,0.1,176.63,176.55,86.82082993]
[1762154636395,0.1,176.63,176.62,17.67019524]
[1762154636603,0.1,176.63,176.62,28.47336755]
[1762154636800,0.1,176.63,176.62,20.592]
[1762154636999,0.1,176.63,176.61,21.15821935]
[1762154637304,0.1,176.63,176.61,20.592]
[1762154637791,0.1,176.63,176.57,0.56634762]
[1762154637792,0.67,176.62,176.59,28.47336755]
[1762154637984,0.1,176.63,176.62,20.592]
[1762154638303,0.1,176.63,176.62,26.25387294]
[1762154638693,0.1,176.63,176.62,34.13524049]
[1762154639200,0.77,176.63,176.62,26.25387294]
[1762154639908,0.77,176.63,176.62,20.592]
[1762154640206,0.77,176.63,176.58,5.66315551]
[1762154640391,7.88136755,176.62,176.58,5.66315551]
[1762154640795,0.67,176.61,176.56,26.25555546]
[1762154640993,0.67,176.61,176.57,7.88136755]
[1762154641194,0.1,176.63,176.6,7.88136755]
[1762154641399,0.1,176.63,176.62,7.88136755]
[1762154641602,3.79915874,176.68,176.62,7.88136755]
[1762154641800,0.1,176.74,176.67,7.88136755]
[1762154642003,0.67,176.73,176.67,7.88136755]
[1762154642205,0.67,176.73,176.67,5.66027056]
[1762154642394,0.67,176.73,176.67,19.81094696]
[1762154643104,0.67,176.73,176.7,7.88136755]
[1762154643713,0.67,176.73,176.69,7.88136755]
[1762154643902,0.67,176.73,176.66,20.592]
[1762154644095,14.2097251,176.73,176.67,20.592]
[1762154644294,9.78882769,176.71,176.62,6.22789011]
[1762154644515,9.78882769,176.71,176.62,31.90211667]
[1762154644516,5.64841385,176.68,176.62,31.90211667]
[1762154644823,0.67,176.68,176.63,5.64841385]
[1762154645023,0.67,176.67,176.63,5.64841385]
[1762154645208,0.67,176.67,176.62,31.90211667]
[1762154645721,3.79177033,176.7,176.66,26.24041385]
[1762154645904,0.67,176.71,176.66,20.592]
[1762154646103,0.67,176.7,176.66,26.24041385]
[1762154646599,0.67,176.7,176.68,5.64841385]
[1762154646825,0.67,176.73,176.69,5.64841385]
[1762154647700,0.67,176.73,176.69,11.30782193]
[1762154648103,0.67,176.73,176.69,5.65940808]
[1762154648304,0.67,176.73,176.68,5.64841385]
[1762154648508,0.67,176.73,176.68,5.65993776]
[1762154648716,4.46120087,176.73,176.68,5.65993776]
[1762154648916,0.67,176.73,176.68,5.65993776]
[1762154649221,10.10692722,176.73,176.67,11.30867329]
[1762154649521,6.31841385,176.73,176.67,11.30867329]
[1762154649746,6.31841385,176.73,176.65,35.45409243]
[1762154649747,3.78851337,176.73,176.7,5.64841385]
[1762154650037,0.77,176.74,176.7,5.64841385]
[1762154650199,0.67,176.73,176.69,26.24041385]
[1762154650399,0.67,176.73,176.69,20.592]
[1762154650594,6.31841385,176.73,176.66,11.30900135]
[1762154650802,0.67,176.73,176.66,5.6605875]
[1762154651030,6.31841385,176.72,176.66,5.6605875]
[1762154651206,0.67,176.72,176.66,11.30900135]
[1762154651407,0.67,176.71,176.66,11.30900135]
[1762154651607,0.67,176.71,176.66,5.6605875]
[1762154652025,11.97740859,176.71,176.65,26.25288661]
[1762154652346,0.67,176.7,176.65,20.592]
[1762154652704,0.67,176.7,176.64,5.64841385]
[1762154652705,0.67,176.7,176.64,5.66123188]
[1762154652907,0.67,176.73,176.65,0.71]
[1762154653121,0.67,176.73,176.68,26.24041385]
[1762154653300,0.67,176.73,176.69,5.64841385]
[1762154653721,0.67,176.73,176.7,5.65930956]
[1762154654038,0.1,176.74,176.73,20.592]
[1762154654199,0.1,176.74,176.73,26.24041385]
[1762154654707,0.1,176.74,176.69,20.592]
[1762154654708,0.77,176.74,176.69,20.592]
[1762154654909,0.1,176.74,176.7,20.592]
[1762154655098,0.1,176.74,176.73,20.592]
[1762154655304,0.1,176.74,176.72,5.64841385]
[1762154655517,0.1,176.74,176.73,5.64841385]
[1762154655712,0.1,176.74,176.72,5.65866908]
[1762154656030,0.1,176.74,176.72,5.64841385]
[1762154656436,0.1,176.74,176.73,5.64841385]
[1762154657011,0.1,176.74,176.72,5.64841385]
[1762154657219,0.77,176.74,176.71,5.64841385]
[1762154657527,0.1,176.74,176.71,5.64841385]
[1762154657731,0.1,176.74,176.72,5.64841385]
[1762154657908,0.1,176.74,176.7,20.592]
[1762154658112,0.1,176.74,176.7,5.64841385]
[1762154658423,0.1,176.74,176.73,5.64841385]
[1762154658759,0.1,176.81,176.76,20.592]
[1762154659035,0.1,176.81,176.77,5.64841385]
[1762154659336,0.1,176.81,176.79,5.64841385]
[1762154659515,0.1,176.81,176.78,26.24041385]
[1762154660025,0.77,176.81,176.79,5.65642853]
[1762154660408,0.77,176.81,176.77,5.65688456]
[1762154660631,6.41841385,176.81,176.76,20.592]
[1762154660838,6.41841385,176.81,176.74,5.64841385]
[1762154660839,5.64841385,176.79,176.74,20.592]
[1762154661034,6.42585959,176.81,176.74,26.25002874]
[1762154661035,0.67,176.78,176.74,26.25002874]
[1762154661534,0.67,176.78,176.74,31.89844259]
[1762154662238,0.67,176.78,176.74,26.25002874]
[1762154662812,5.64841385,176.76,176.69,6.36962986]
[1762154663013,5.64841385,176.75,176.69,11.30804371]
[1762154663212,0.67,176.79,176.74,5.64841385]
[1762154663534,0.67,176.8,176.73,20.592]
[1762154663736,0.67,176.8,176.75,5.64841385]
[1762154664145,0.67,176.8,176.76,11.30580239]
[1762154664327,0.1,176.81,176.78,5.64841385]
[1762154664637,0.77,176.81,176.78,5.64841385]
[1762154665519,0.1,176.81,176.79,5.64841385]
[1762154665839,0.77,176.81,176.78,5.64841385]
[1762154666042,0.1,176.81,176.79,5.65642853]
[1762154666213,0.1,176.81,176.79,11.30484238]
[1762154666411,0.76,176.81,176.79,5.65642853]